bitfinex/quotes_BTCUSD_20240721
["timestamp","ask_amount","ask_price","bid_price","bid_amount"]
[1721576903098,0.1,67149.0,67142.0,0.18763096]
[1721576903317,0.0655676,67168.0,67148.0,0.29447479]
[1721576903318,0.1,67159.0,67148.0,0.29447479]
[1721576903508,0.14519754,67158.0,67157.0,0.07717479]
[1721576903757,0.14519754,67158.0,67157.0,0.21697479]
[1721576903954,0.0155676,67168.0,67157.0,0.21697479]
[1721576903955,0.0155676,67168.0,67157.0,0.34067907]
[1721576904195,0.1441998,67167.0,67166.0,0.07717479]
[1721576904541,0.1441998,67167.0,67166.0,0.26477907]
[1721576904756,0.1441998,67167.0,67166.0,0.34067907]
[1721576905811,0.0155676,67168.0,67166.0,0.34067907]
[1721576906017,0.0155676,67168.0,67167.0,0.12370428]
[1721576906430,0.0155676,67168.0,67167.0,0.12367639]
[1721576906635,0.1644476,67168.0,67167.0,0.12367639]
[1721576906810,0.0155676,67168.0,67167.0,0.12367639]
[1721576907041,0.0255676,67168.0,67167.0,0.12367639]
[1721576907245,0.0155676,67168.0,67167.0,0.12367639]
[1721576908273,0.0165676,67168.0,67167.0,0.12367639]
[1721576908472,0.16021323,67168.0,67167.0,0.12367639]
[1721576908987,0.90461323,67168.0,67167.0,0.12367639]
[1721576909196,0.90461323,67168.0,67151.0,0.148917]
[1721576909197,0.90461323,67168.0,67155.0,0.1398]
[1721576909198,0.36067455,67168.0,67155.0,0.1398]
[1721576909418,0.148907,67156.0,67155.0,0.1398]
[1721576909625,0.29388281,67156.0,67155.0,0.26349992]
[1721576909839,0.59169681,67156.0,67155.0,0.26349992]
[1721576910087,0.29388281,67156.0,67155.0,0.26349992]
[1721576910669,0.59169681,67156.0,67155.0,0.12369992]
[1721576910909,0.59169681,67156.0,67149.0,0.0639]
[1721576910910,0.14892,67150.0,67149.0,0.0639]
[1721576911071,0.14892,67150.0,67149.0,0.12371804]
[1721576911072,0.29456106,67150.0,67149.0,0.12371804]
[1721576911273,0.29456106,67150.0,67149.0,0.12371998]
[1721576911480,0.29456106,67150.0,67145.0,0.07717479]
[1721576911481,0.297858,67146.0,67145.0,0.07717479]
[1721576911753,0.101,67156.0,67145.0,0.27679475]
[1721576911959,0.101,67156.0,67155.0,0.21697479]
[1721576911960,0.001,67156.0,67155.0,0.21697479]
[1721576912239,0.001,67156.0,67155.0,0.34068791]
[1721576912240,0.101,67156.0,67155.0,0.34068791]
[1721576912454,0.001,67156.0,67155.0,0.48958245]
[1721576912662,0.0225676,67168.0,67155.0,0.34067345]
[1721576912663,0.0155676,67168.0,67155.0,0.34067345]
[1721576912879,0.0155676,67168.0,67167.0,0.07717479]
[1721576913491,0.0155676,67168.0,67167.0,0.36585679]
[1721576913697,0.0155676,67168.0,67167.0,0.48953934]
[1721576913907,0.059661,67181.0,67167.0,0.48953934]
[1721576913908,0.059661,67181.0,67167.0,0.33265734]
[1721576914118,0.059661,67181.0,67168.0,0.12368255]
[1721576914119,0.148878,67169.0,67168.0,0.12368255]
[1721576914393,0.14353479,67169.0,67168.0,0.12368255]
[1721576914590,0.007,67168.0,67167.0,0.20897479]
[1721576914791,0.007,67168.0,67167.0,0.33265506]
[1721576915006,0.29952563,67168.0,67167.0,0.12368027]
[1721576915210,0.59728563,67168.0,67167.0,0.12368027]
[1721576915423,0.59728563,67168.0,67163.0,0.07717479]
[1721576915424,0.15064563,67168.0,67163.0,0.07717479]
[1721576915630,0.148885,67166.0,67164.0,0.1236821]
[1721576915835,0.148885,67166.0,67165.0,0.1236821]
[1721576915836,0.29280771,67166.0,67165.0,0.1236821]
[1721576916043,0.73946071,67166.0,67165.0,0.1236821]
[1721576916247,0.73946071,67166.0,67160.0,0.0771]
[1721576916248,0.148895,67161.0,67160.0,0.0771]
[1721576916453,0.44192039,67165.0,67160.0,0.20078726]
[1721576916664,0.44192039,67165.0,67160.0,0.0771]
[1721576916665,0.148895,67161.0,67160.0,0.0771]
[1721576916871,0.148895,67161.0,67157.0,0.0658]
[1721576916872,0.148902,67158.0,67157.0,0.0658]
[1721576917082,0.148902,67158.0,67147.0,0.297853]
[1721576917083,0.148919,67151.0,67147.0,0.0658]
[1721576917287,0.397791,67161.0,67147.0,0.0658]
[1721576917288,0.297823,67154.0,67148.0,0.12370294]
[1721576917482,0.29438975,67153.0,67147.0,0.0658]
[1721576917700,0.29438975,67153.0,67152.0,0.07717479]
[1721576917701,0.14547475,67153.0,67152.0,0.07717479]
[1721576918126,0.09405677,67179.0,67152.0,0.07717479]
[1721576918127,0.001,67161.0,67152.0,0.07717479]
[1721576918332,0.14486493,67160.0,67159.0,0.07717479]
[1721576918536,0.29376293,67160.0,67159.0,0.07717479]
[1721576919149,0.14486493,67160.0,67159.0,0.07717479]
[1721576919387,0.1,67167.0,67159.0,0.07717479]
[1721576919593,0.0614,67180.0,67159.0,0.07717479]
[1721576919594,0.297744,67172.0,67160.0,0.12369235]
[1721576919799,3.0,67168.0,67161.0,0.12369235]
[1721576920033,0.102794,67167.0,67162.0,0.12369235]
[1721576920298,0.102794,67167.0,67163.0,0.12368299]
[1721576920558,0.102794,67167.0,67163.0,0.2173]
[1721576920801,0.1,67167.0,67163.0,0.2173]
[1721576921007,0.102794,67167.0,67163.0,0.2173]
[1721576921210,0.1,67167.0,67163.0,0.2173]
[1721576921680,0.14392271,67166.0,67163.0,0.2173]
[1721576921916,0.14392271,67166.0,67153.0,0.1429]
[1721576921917,0.148893,67162.0,67160.0,0.001]
[1721576922152,0.29325907,67162.0,67160.0,0.001]
[1721576922356,0.29325907,67162.0,67155.0,0.2173]
[1721576922357,0.148895,67161.0,67155.0,0.2173]
[1721576923189,0.14436607,67162.0,67155.0,0.2173]
[1721576923303,0.14436607,67162.0,67156.0,0.12369483]
[1721576923509,0.14436607,67162.0,67155.0,0.2173]
[1721576923510,0.14436607,67162.0,67155.0,0.2193]
[1721576923714,0.29326007,67162.0,67155.0,0.2193]
[1721576923916,0.29326007,67162.0,67156.0,0.12369316]
[1721576924113,0.14436607,67162.0,67155.0,0.2193]
[1721576924321,0.14436607,67162.0,67156.0,0.12369318]
[1721576924528,0.004,67166.0,67156.0,0.148906]
[1721576924733,0.29725107,67166.0,67156.0,0.148906]
[1721576924934,0.1,67165.0,67156.0,0.148906]
[1721576925138,0.1,67165.0,67157.0,0.148904]
[1721576925397,0.1,67165.0,67155.0,0.368207]
[1721576925599,0.1,67165.0,67155.0,0.366207]
[1721576925830,0.1,67165.0,67155.0,0.367207]
[1721576926050,0.1,67165.0,67156.0,0.149906]
[1721576926453,0.1,67165.0,67156.0,0.148906]
[1721576926562,0.103,67165.0,67156.0,0.148906]
[1721576927217,0.103,67165.0,67155.0,0.2173]
[1721576927428,0.1,67165.0,67159.0,0.148898]
[1721576927774,3.0,67168.0,67163.0,0.2173]
[1721576927986,3.0,67168.0,67164.0,0.1415]
[1721576928189,0.002794,67167.0,67164.0,0.1415]
[1721576928396,3.0,67168.0,67164.0,0.290388]
[1721576928614,3.0,67168.0,67164.0,0.1415]
[1721576928806,0.003,67165.0,67164.0,0.290388]
[1721576929261,0.003,67165.0,67164.0,0.1415]
[1721576929494,0.0185676,67165.0,67164.0,0.1435]
[1721576929730,0.0155676,67165.0,67164.0,0.1415]
[1721576930197,0.0155676,67165.0,67164.0,0.1455]
[1721576931431,0.0155676,67165.0,67164.0,0.294389]
[1721576931640,0.0145676,67165.0,67164.0,0.294389]
[1721576931852,0.0145676,67165.0,67164.0,0.592167]
[1721576932045,0.0145676,67165.0,67164.0,0.294389]
[1721576932244,0.0145676,67165.0,67164.0,0.71583958]
[1721576932704,0.0145676,67165.0,67164.0,0.41806158]
[1721576934302,0.0145676,67165.0,67164.0,0.71583958]
[1721576936094,0.0145676,67165.0,67164.0,1.06361758]
[1721576936727,0.0145676,67165.0,67164.0,1.01361758]
[1721576937065,0.0145676,67165.0,67164.0,1.06361758]
[1721576937289,0.0145676,67165.0,67164.0,1.36139558]
[1721576937455,0.0145676,67165.0,67164.0,1.56577732]
[1721576937695,0.0145676,67165.0,67164.0,1.81355532]
[1721576937873,3.0,67168.0,67167.0,0.938412]
[1721576938071,3.0,67168.0,67167.0,1.31335179]
[1721576938661,3.0,67168.0,67167.0,1.43699487]
[1721576938874,1.9812,67168.0,67167.0,1.31335179]
[1721576939311,1.9812,67168.0,67167.0,1.51773353]
[1721576939566,1.9812,67168.0,67167.0,1.53173353]
[1721576940161,1.9812,67168.0,67167.0,1.98619853]
[1721576940364,1.9812,67168.0,67167.0,2.00919853]
[1721576940563,1.9822,67168.0,67167.0,2.02219853]
[1721576940767,1.9822,67168.0,67167.0,2.00919853]
[1721576941570,1.9822,67168.0,67167.0,1.99519853]
[1721576941771,1.8989,67168.0,67167.0,2.30696353]
[1721576942135,1.43708464,67168.0,67167.0,2.17696353]
[1721576942464,1.41299959,67168.0,67167.0,2.17196353]
[1721576942634,0.37869959,67168.0,67167.0,2.26296353]
[1721576942789,0.24398651,67168.0,67167.0,2.58372853]
[1721576943196,0.24198651,67168.0,67167.0,2.56072853]
[1721576943563,0.24298651,67168.0,67167.0,2.56972853]
[1721576943761,0.24298651,67168.0,67167.0,2.56072853]
[1721576943947,0.13772451,67168.0,67167.0,2.56072853]
[1721576944519,0.07817251,67168.0,67167.0,2.56072853]
[1721576944723,0.07917251,67168.0,67167.0,2.56972853]
[1721576944931,5.1e-07,67168.0,67167.0,2.56972853]
[1721576945321,0.002794,67207.0,67206.0,0.148796]
[1721576945553,0.1428,67208.0,67207.0,0.446382]
[1721576945973,0.1428,67214.0,67209.0,0.148787]
[1721576946146,0.1,67213.0,67209.0,0.148788]
[1721576946352,0.1428,67214.0,67209.0,0.297577]
[1721576946533,0.1428,67214.0,67206.0,0.001]
[1721576947124,0.1428,67214.0,67211.0,0.148784]
[1721576947309,0.1428,67214.0,67212.0,0.148782]
[1721576947748,0.1428,67214.0,67207.0,0.002]
[1721576947963,0.00837,67216.0,67213.0,0.14878]
[1721576948277,0.00837,67216.0,67214.0,0.148778]
[1721576948482,0.00837,67216.0,67213.0,0.14878]
[1721576948751,0.00837,67216.0,67214.0,0.148778]
[1721576948933,0.00837,67216.0,67207.0,0.05]
[1721576949083,0.00837,67216.0,67212.0,0.148782]
[1721576949301,0.001,67214.0,67207.0,0.05]
[1721576949506,0.001,67214.0,67208.0,0.05297521]
[1721576949710,0.001,67214.0,67213.0,0.446341]
[1721576949910,0.001,67214.0,67213.0,0.743902]
[1721576950315,0.00837,67216.0,67215.0,0.74388]
[1721576951602,0.00837,67216.0,67215.0,0.455328]
[1721576952081,0.00837,67216.0,67215.0,0.157776]
[1721576952322,0.00837,67216.0,67215.0,0.455328]
[1721576953851,0.00837,67216.0,67215.0,0.76588]
[1721576954319,0.00837,67216.0,67215.0,0.88944877]
[1721576954521,0.00837,67216.0,67215.0,0.76588]
[1721576954724,0.00837,67216.0,67215.0,0.75688]
[1721576955174,0.00837,67216.0,67215.0,0.76688]
[1721576955555,0.00837,67216.0,67215.0,1.18800187]
[1721576956123,0.00837,67216.0,67215.0,1.18900187]
[1721576956337,0.00837,67216.0,67215.0,0.172776]
[1721576956744,0.00837,67216.0,67215.0,0.024]
[1721576956918,0.14917,67216.0,67215.0,0.024]
[1721576957360,0.595492,67216.0,67215.0,0.024]
[1721576957577,0.14917,67216.0,67215.0,0.024]
[1721576957785,0.297744,67216.0,67215.0,0.024]
[1721576957986,0.14897,67216.0,67215.0,0.024]
[1721576958420,0.297744,67216.0,67215.0,0.024]
[1721576958626,0.14897,67216.0,67215.0,0.024]
[1721576958985,0.595292,67216.0,67215.0,0.024]
[1721576959387,0.89284,67216.0,67215.0,0.024]
[1721576959995,0.297744,67216.0,67215.0,0.01]
[1721576960409,0.148778,67214.0,67205.0,0.148798]
[1721576960606,0.14897,67216.0,67206.0,0.12359313]
[1721576960813,0.0155676,67213.0,67207.0,0.12359313]
[1721576961132,0.0155676,67213.0,67208.0,0.12359313]
[1721576961329,0.0155676,67213.0,67209.0,0.12359313]
[1721576961547,0.0155676,67213.0,67210.0,0.12359313]
[1721576961743,0.0155676,67213.0,67207.0,0.148793]
[1721576961916,0.0155676,67213.0,67208.0,0.12359355]
[1721576962115,0.0155676,67213.0,67209.0,0.12359355]
[1721576962317,0.0155676,67213.0,67210.0,0.12359355]
[1721576962515,0.0155676,67213.0,67211.0,0.12359355]
[1721576962794,0.0155676,67213.0,67208.0,0.003]
[1721576962998,0.0155676,67213.0,67209.0,0.12359352]
[1721576963218,0.446355,67211.0,67210.0,0.12359352]
[1721576963426,0.1643496,67213.0,67210.0,0.12359403]
[1721576963631,0.1643496,67213.0,67208.0,0.003]
[1721576963632,0.0155676,67213.0,67209.0,0.006]
[1721576963838,0.0155676,67213.0,67201.0,0.57203465]
[1721576963839,0.148785,67211.0,67201.0,0.42323065]
[1721576964043,0.0155676,67213.0,67209.0,0.003]
[1721576964250,0.0155676,67213.0,67210.0,0.12359735]
[1721576964456,0.0155676,67213.0,67211.0,0.12359735]
[1721576964645,0.1643486,67213.0,67212.0,0.12359735]
[1721576964896,0.0155676,67213.0,67212.0,0.12359735]
[1721576965101,0.0142796,67213.0,67212.0,0.12359735]
[1721576966037,0.4606206,67213.0,67212.0,0.12359735]
[1721576966239,1.03724327,67213.0,67201.0,0.27442465]
[1721576966440,1.03724327,67213.0,67202.0,0.12360563]
[1721576966441,0.297596,67206.0,67202.0,0.12360563]
[1721576966643,0.1404,67207.0,67203.0,0.12360563]
[1721576967016,0.148798,67205.0,67204.0,0.12360563]
[1721576967446,0.437988,67207.0,67204.0,0.12360563]
[1721576967447,0.1404,67207.0,67204.0,0.12360563]
[1721576967586,0.1404,67207.0,67205.0,0.12360563]
[1721576967777,0.1404,67207.0,67206.0,0.12360563]
[1721576968178,0.586782,67207.0,67206.0,0.12360563]
[1721576969000,1.32128381,67207.0,67206.0,0.12360563]
[1721576969201,1.42128381,67207.0,67206.0,0.13360563]
[1721576969437,1.42128381,67207.0,67206.0,0.01]
[1721576969611,1.42128381,67207.0,67206.0,0.13361992]
[1721576970413,1.42128381,67207.0,67205.0,0.007]
[1721576970414,0.74398,67206.0,67205.0,0.007]
[1721576970622,0.98336117,67206.0,67205.0,0.13062248]
[1721576971047,0.98336117,67206.0,67205.0,0.12362248]
[1721576971276,0.38817717,67206.0,67205.0,0.12362248]
[1721576971486,0.68576917,67206.0,67205.0,0.12362248]
[1721576972091,0.68576917,67206.0,67205.0,0.12462248]
[1721576972301,0.98336117,67206.0,67205.0,0.12462248]
[1721576972501,0.68576917,67206.0,67205.0,0.12462248]
[1721576972698,0.98336117,67206.0,67205.0,0.12461987]
[1721576973101,1.04416117,67206.0,67205.0,0.12461987]
[1721576973327,1.04416117,67206.0,67205.0,0.12361987]
[1721576973555,0.74656917,67206.0,67205.0,0.12361987]
[1721576973756,0.74656917,67206.0,67205.0,0.12461987]
[1721576974338,1.04416117,67206.0,67205.0,0.12461987]
[1721576974545,1.04416117,67206.0,67205.0,0.001]
[1721576974546,1.12276117,67206.0,67205.0,0.001]
[1721576974727,1.42035317,67206.0,67205.0,0.001]
[1721576974969,1.12276117,67206.0,67205.0,0.001]
[1721576975157,1.12276117,67206.0,67195.0,0.27442465]
[1721576975360,0.29761,67203.0,67196.0,0.12362523]
[1721576975560,0.14881,67200.0,67197.0,0.12362523]
[1721576975762,0.248811,67199.0,67198.0,0.12362521]
[1721576977066,0.1,67199.0,67198.0,0.12662521]
[1721576977266,0.1,67200.0,67198.0,0.12662521]
[1721576977485,0.510528,67200.0,67199.0,0.12362521]
[1721576977694,0.689128,67200.0,67199.0,0.12362521]
[1721576977906,0.446434,67199.0,67198.0,0.003]
[1721576978110,0.844057,67199.0,67198.0,0.12662802]
[1721576978326,0.44644,67198.0,67197.0,0.004]
[1721576978468,0.44644,67198.0,67197.0,0.12762833]
[1721576978469,0.744067,67198.0,67197.0,0.12762833]
[1721576978669,1.184394,67198.0,67197.0,0.12762833]
[1721576978874,1.284394,67198.0,67197.0,0.004]
[1721576979277,1.284394,67198.0,67192.0,1.2465]
[1721576979278,0.446475,67193.0,67192.0,1.2465]
[1721576979488,0.446475,67193.0,67192.0,0.12363322]
[1721576979686,0.744125,67193.0,67192.0,0.12363322]
[1721576980395,0.888525,67193.0,67192.0,0.12363322]
[1721576980595,0.888525,67193.0,67192.0,0.04363322]
[1721576980804,0.888525,67193.0,67181.0,0.07717479]
[1721576981020,0.28527593,67193.0,67181.0,0.07717479]
[1721576981233,0.297665,67190.0,67181.0,0.07717479]
[1721576981495,0.14165124,67189.0,67181.0,0.07717479]
[1721576981712,0.148845,67184.0,67181.0,0.07717479]
[1721576981928,0.14165124,67189.0,67181.0,0.07717479]
[1721576982151,0.1444,67187.0,67181.0,0.07717479]
[1721576982364,0.293238,67187.0,67181.0,0.07717479]
[1721576982605,0.14884,67186.0,67181.0,0.07917479]
[1721576982822,0.14884,67186.0,67181.0,0.07717479]
[1721576983042,0.293239,67187.0,67181.0,0.09217479]
[1721576983252,0.001,67184.0,67181.0,0.09217479]
[1721576983455,0.001,67184.0,67181.0,0.07717479]
[1721576983901,0.001,67184.0,67181.0,0.08117479]
[1721576985347,0.001,67184.0,67181.0,0.08317479]
[1721576985544,0.001,67184.0,67181.0,0.09117479]
[1721576985745,0.148842,67185.0,67181.0,0.09117479]
[1721576985969,0.148842,67185.0,67181.0,0.07717479]
[1721576986181,0.001,67184.0,67181.0,0.08617479]
[1721576986389,0.001,67184.0,67181.0,0.09217479]
[1721576986736,0.001,67184.0,67181.0,0.08617479]
[1721576986948,0.148842,67185.0,67181.0,0.07717479]
[1721576987250,0.149842,67185.0,67181.0,0.09017479]
[1721576987485,0.149842,67185.0,67181.0,0.08217479]
[1721576987865,0.148847,67183.0,67181.0,0.09117479]
[1721576988438,0.148847,67183.0,67181.0,0.08617479]
[1721576988949,0.148844,67185.0,67181.0,0.08317479]
[1721576989359,0.001,67185.0,67181.0,0.08517479]
[1721576989575,0.001,67185.0,67181.0,0.09317479]
[1721576990059,0.001,67185.0,67184.0,0.446533]
[1721576990227,0.001,67185.0,67184.0,0.57017123]
[1721576990448,0.1639,67192.0,67187.0,0.148836]
[1721576990449,0.1,67192.0,67187.0,0.148836]
[1721576990607,0.1,67192.0,67188.0,0.22601079]
[1721576990810,0.1,67192.0,67188.0,0.07717479]
[1721576991438,0.1,67194.0,67188.0,0.07717479]
[1721576991688,0.248823,67194.0,67188.0,0.07717479]
[1721576991891,0.1,67194.0,67183.0,0.297692]
[1721576992054,0.1,67194.0,67186.0,0.148839]
[1721576992260,0.1,67195.0,67188.0,0.07717479]
[1721576992492,0.1,67195.0,67185.0,0.14884]
[1721576992711,0.1,67195.0,67186.0,0.12363106]
[1721576992869,0.1,67195.0,67184.0,0.008]
[1721576993043,0.150823,67194.0,67185.0,0.12363163]
[1721576993268,0.1,67193.0,67186.0,0.12363163]
[1721576993489,0.1,67193.0,67185.0,0.148842]
[1721576993688,0.1,67193.0,67186.0,0.12363208]
[1721576993890,0.1,67193.0,67185.0,0.148842]
[1721576994211,0.1,67193.0,67186.0,0.12363208]
[1721576994417,0.14883,67191.0,67181.0,0.148851]
[1721576994625,0.374555,67192.0,67182.0,0.12363758]
[1721576994843,0.248829,67191.0,67183.0,0.12363926]
[1721576995092,0.1,67191.0,67184.0,0.12363673]
[1721576995300,0.1,67191.0,67189.0,0.148833]
[1721576995732,0.1,67191.0,67187.0,0.446511]
[1721576995940,0.001,67193.0,67188.0,0.148836]
[1721576996142,0.001,67191.0,67188.0,0.148836]
[1721576996570,0.001,67193.0,67188.0,0.148836]
[1721576996776,0.001,67193.0,67188.0,0.297671]
[1721576996978,0.001,67191.0,67188.0,0.297671]
[1721576997193,0.001,67191.0,67189.0,0.001]
[1721576997396,0.001,67191.0,67190.0,0.446494]
[1721576997819,0.001,67191.0,67190.0,0.57012133]
[1721576998051,0.001,67191.0,67190.0,0.86778433]
[1721576998276,0.065,67200.0,67190.0,0.86778433]
[1721576998277,0.065,67200.0,67199.0,0.148811]
[1721576998480,0.00837,67217.0,67200.0,0.446423]
[1721576998481,0.065,67205.0,67200.0,0.446423]
[1721576998694,0.065,67205.0,67202.0,0.148805]
[1721576999128,0.065,67205.0,67203.0,0.00297569]
[1721576999345,0.065,67205.0,67203.0,0.15177769]
[1721576999513,0.065,67205.0,67204.0,0.12359835]
[1721576999649,0.001,67205.0,67204.0,0.12359835]
[1721576999855,0.001,67205.0,67204.0,0.27239835]
[1721577000056,0.001,67205.0,67204.0,0.57297497]
[1721577000266,0.001,67205.0,67204.0,0.56999935]
[1721577000470,0.0632,67209.0,67207.0,0.148792]
[1721577000702,0.1,67212.0,67209.0,0.148788]
[1721577000903,0.00817,67216.0,67204.0,0.297601]
[1721577000904,0.00817,67216.0,67211.0,0.297566]
[1721577001104,0.00817,67216.0,67215.0,0.148776]
[1721577001383,0.00817,67216.0,67215.0,0.446328]
[1721577002199,0.00817,67216.0,67204.0,0.007]
[1721577002400,0.00817,67216.0,67215.0,0.001]
[1721577003052,0.00817,67216.0,67206.0,0.29759]
[1721577003253,0.1413,67215.0,67203.0,0.297604]
[1721577003365,0.1413,67215.0,67206.0,0.148795]
[1721577003366,0.002794,67214.0,67206.0,0.148795]
[1721577003567,0.151573,67214.0,67209.0,0.001]
[1721577003818,0.002794,67214.0,67206.0,0.148796]
[1721577004015,0.002794,67214.0,67207.0,0.148793]
[1721577004794,0.002794,67214.0,67209.0,0.003]
[1721577005278,0.148781,67213.0,67209.0,0.003]
[1721577005484,0.587661,67210.0,67209.0,0.003]
[1721577005640,0.72665474,67210.0,67209.0,0.003]
[1721577006042,0.42908074,67210.0,67209.0,0.003]
[1721577006251,0.28029374,67210.0,67209.0,0.004]
[1721577006462,0.42908074,67210.0,67209.0,0.004]
[1721577006826,0.42908074,67210.0,67209.0,0.001]
[1721577007215,0.72665474,67210.0,67209.0,0.009]
[1721577007396,0.42908074,67210.0,67209.0,0.009]
[1721577007974,0.72665474,67210.0,67209.0,0.009]
[1721577008211,0.42908074,67210.0,67209.0,0.009]
[1721577008384,0.1413,67210.0,67209.0,0.008]
[1721577008589,0.72665474,67210.0,67209.0,0.013]
[1721577009373,1.02422874,67210.0,67209.0,0.013]
[1721577009615,1.12422874,67210.0,67209.0,0.013]
[1721577010330,0.82665474,67210.0,67209.0,0.013]
[1721577010749,0.52908074,67210.0,67209.0,0.013]
[1721577012500,0.2413,67210.0,67209.0,0.013]
[1721577012711,0.1,67210.0,67209.0,0.013]
[1721577012916,0.0998,67210.0,67209.0,0.013]
[1721577013119,0.8272,67214.0,67209.0,0.013]
[1721577013751,0.0632,67214.0,67210.0,0.00297541]
[1721577013955,0.00817,67216.0,67215.0,0.148776]
[1721577014381,0.00817,67216.0,67213.0,0.14878]
[1721577014593,0.00817,67216.0,67214.0,0.148777]
[1721577014797,0.00817,67216.0,67215.0,0.148776]
[1721577015638,0.00917,67216.0,67213.0,0.29756]
[1721577015850,0.00917,67216.0,67211.0,0.297569]
[1721577016101,0.00817,67216.0,67210.0,0.003]
[1721577016351,0.00817,67216.0,67209.0,0.300577]
[1721577016352,0.00817,67216.0,67215.0,0.446328]
[1721577016550,0.00817,67216.0,67215.0,0.74388]
[1721577016551,0.00917,67216.0,67215.0,0.74388]
[1721577017182,0.00917,67216.0,67215.0,1.041432]
[1721577017390,0.00917,67216.0,67215.0,0.74388]
[1721577017833,0.00817,67216.0,67215.0,0.74388]
[1721577018040,0.00917,67216.0,67215.0,0.74488]
[1721577018691,0.00817,67216.0,67215.0,0.74488]
[1721577018895,0.00817,67216.0,67215.0,0.75088]
[1721577019543,0.00817,67216.0,67215.0,0.453328]
[1721577019954,0.00817,67216.0,67215.0,0.155776]
[1721577020161,0.00817,67216.0,67215.0,0.164776]
[1721577020423,0.00817,67216.0,67215.0,0.163776]
[1721577020632,0.00817,67216.0,67215.0,0.472328]
[1721577021048,0.00817,67216.0,67215.0,0.452328]
[1721577021292,0.00817,67216.0,67215.0,0.016]
[1721577021502,0.14797,67216.0,67215.0,0.01]
[1721577021747,0.14797,67216.0,67215.0,0.017]
[1721577022550,0.14797,67216.0,67215.0,0.01]
[1721577022760,0.14797,67216.0,67215.0,0.017]
[1721577023329,0.14797,67216.0,67215.0,0.007]
[1721577023903,0.14797,67216.0,67215.0,0.018]
[1721577024611,0.14797,67216.0,67215.0,0.007]
[1721577024826,0.14797,67216.0,67209.0,0.148789]
[1721577025024,0.14797,67216.0,67215.0,0.007]
[1721577025670,0.14797,67216.0,67209.0,0.148788]
[1721577026096,0.14797,67216.0,67209.0,0.155788]
[1721577026314,0.00817,67216.0,67215.0,0.446328]
[1721577026516,0.00817,67216.0,67215.0,0.86746448]
[1721577026730,0.00817,67216.0,67215.0,0.87746448]
[1721577026938,0.00817,67216.0,67215.0,0.86746448]
[1721577027547,0.00817,67216.0,67215.0,0.74388]
[1721577027754,0.00817,67216.0,67215.0,0.86744953]
[1721577027957,0.00817,67216.0,67215.0,0.88444953]
[1721577028465,0.00817,67216.0,67215.0,0.58689753]
[1721577028665,0.00817,67216.0,67215.0,0.28934553]
[1721577028872,0.00817,67216.0,67215.0,0.14056953]
[1721577030662,0.00817,67216.0,67215.0,0.14057766]
[1721577030863,0.00817,67216.0,67215.0,0.28935366]
[1721577031063,0.00817,67216.0,67215.0,0.58690566]
[1721577031266,0.00817,67216.0,67215.0,1.18200966]
[1721577031675,0.00817,67216.0,67215.0,1.23200966]
[1721577031878,0.00817,67216.0,67215.0,1.18200966]
[1721577032502,0.00817,67216.0,67215.0,1.4363914]
[1721577032700,0.00817,67216.0,67215.0,1.48853764]
[1721577032906,0.00817,67216.0,67215.0,1.6738731]
[1721577033111,0.00817,67216.0,67215.0,1.6568731]
[1721577033318,0.00817,67216.0,67215.0,1.61872686]
[1721577033523,0.00817,67216.0,67215.0,1.67086437]
[1721577033735,0.00817,67216.0,67215.0,1.33281374]
[1721577033934,0.00817,67216.0,67215.0,1.64169167]
[1721577034138,0.00817,67216.0,67215.0,1.93924367]
[1721577034346,0.00817,67216.0,67215.0,2.09594367]
[1721577034765,0.00817,67216.0,67215.0,2.10994367]
[1721577034986,0.00817,67216.0,67215.0,2.12394367]
[1721577035391,0.00084,67222.0,67221.0,0.1]
[1721577035588,0.00084,67222.0,67221.0,2.01966457]
[1721577035799,0.00084,67222.0,67221.0,2.61471657]
[1721577035994,0.00084,67222.0,67221.0,2.71471657]
[1721577036209,0.00837,67229.0,67228.0,1.595427]
[1721577036405,0.00837,67229.0,67228.0,2.69172036]
[1721577036613,0.00837,67233.0,67232.0,1.595346]
[1721577036815,0.00837,67233.0,67232.0,2.14323741]
[1721577037016,0.002,67249.0,67238.0,0.2567]
[1721577037226,0.002,67249.0,67248.0,0.546109]
[1721577037437,0.002,67249.0,67248.0,1.41880596]
[1721577037634,0.002,67249.0,67248.0,1.44180596]
[1721577037868,0.002,67249.0,67248.0,1.59850596]
[1721577038087,0.002,67249.0,67248.0,2.05327165]
[1721577038287,0.002,67249.0,67248.0,2.04279583]
[1721577038678,0.002,67249.0,67248.0,1.61867652]
[1721577038886,0.002,67249.0,67248.0,1.39180596]
[1721577039094,0.002,67249.0,67248.0,0.13750322]
[1721577039498,0.00784095,67249.0,67248.0,0.12350322]
[1721577039703,0.002,67249.0,67248.0,0.12350322]
[1721577039904,0.002,67249.0,67248.0,0.13751379]
[1721577040237,0.00784162,67249.0,67248.0,0.014]
[1721577040384,0.002,67249.0,67248.0,0.014]
[1721577040581,0.002,67249.0,67248.0,0.028]
[1721577040792,0.002,67249.0,67248.0,0.014]
[1721577041231,0.00783515,67249.0,67248.0,0.028]
[1721577041842,0.00783515,67249.0,67248.0,0.014]
[1721577042013,0.00783515,67249.0,67248.0,0.028]
[1721577042618,0.00783515,67249.0,67248.0,0.014]
[1721577043225,0.00783515,67249.0,67248.0,0.028]
[1721577043997,0.00783515,67249.0,67248.0,0.15152058]
[1721577044444,0.002,67249.0,67248.0,0.15152058]
[1721577045408,0.002,67249.0,67248.0,0.15151748]
[1721577045611,0.002,67249.0,67248.0,0.028]
[1721577045873,0.0078414,67249.0,67248.0,0.028]
[1721577045997,0.002,67249.0,67248.0,0.028]
[1721577046199,0.00784117,67249.0,67248.0,0.028]
[1721577046809,0.002,67249.0,67248.0,0.028]
[1721577047096,0.00783997,67249.0,67248.0,0.028]